bitfinex/quotes_BTCUSD_20241205
["timestamp","ask_amount","ask_price","bid_price","bid_amount"]
[1733390492196,0.4231771,103090.0,103080.0,2.79926125]
[1733390492653,0.52993803,103090.0,103080.0,2.70225125]
[1733390493389,0.50209342,103090.0,103080.0,2.70225125]
[1733390493618,0.47113249,103090.0,103080.0,2.78465125]
[1733390494548,0.56005171,103090.0,103080.0,2.78365125]
[1733390494766,0.46213249,103090.0,103080.0,2.78365125]
[1733390494993,0.4389133,103090.0,103080.0,2.78365125]
[1733390495220,0.4299133,103090.0,103080.0,2.78265125]
[1733390495446,0.48513249,103090.0,103080.0,2.78365125]
[1733390495694,0.58305171,103090.0,103080.0,2.78365125]
[1733390495914,0.59205171,103090.0,103080.0,2.78465125]
[1733390497216,0.49413249,103090.0,103080.0,2.78465125]
[1733390502885,0.4479133,103090.0,103080.0,2.78465125]
[1733390503121,0.49413249,103090.0,103080.0,2.78465125]
[1733390510429,0.4479133,103090.0,103080.0,2.88465125]
[1733390510659,0.4479133,103090.0,103080.0,2.93145125]
[1733390512300,0.4389133,103090.0,103080.0,2.93045125]
[1733390512541,0.4299133,103090.0,103080.0,2.92945125]
[1733390512723,0.4479133,103090.0,103080.0,2.93145125]
[1733390513223,0.4479133,103090.0,103080.0,2.93045125]
[1733390513444,0.4389133,103090.0,103080.0,2.93045125]
[1733390513665,0.4479133,103090.0,103080.0,2.93145125]
[1733390518121,0.54583252,103090.0,103080.0,2.93145125]
[1733390518329,0.49413249,103090.0,103080.0,2.88465125]
[1733390519449,0.4479133,103090.0,103080.0,2.70225125]
[1733390520143,0.4479133,103090.0,103080.0,2.80225125]
[1733390520803,0.4479133,103090.0,103080.0,2.70225125]
[1733390521035,0.4479133,103090.0,103080.0,2.93085125]
[1733390521036,0.2749133,103090.0,103080.0,2.93085125]
[1733390522672,0.2137412,103090.0,103080.0,2.93085125]
[1733390522898,0.21588741,103090.0,103080.0,2.93085125]
[1733390525227,0.2137412,103090.0,103080.0,2.93085125]
[1733390530205,0.2137412,103090.0,103080.0,2.98463206]
[1733390531151,0.2047412,103090.0,103080.0,2.98363206]
[1733390531381,0.2047412,103090.0,103080.0,2.99263206]
[1733390531612,0.2057412,103090.0,103080.0,2.99263206]
[1733390531863,0.1967412,103090.0,103080.0,2.93785125]
[1733390532080,0.1988874,103090.0,103080.0,2.93785125]
[1733390532316,0.1998874,103090.0,103080.0,2.94685125]
[1733390532535,0.29956345,103090.0,103080.0,2.94685125]
[1733390532781,0.29741725,103090.0,103080.0,2.94685125]
[1733390533857,0.34363644,103090.0,103080.0,2.71825125]
[1733390534063,0.39671234,103090.0,103080.0,2.62124125]
[1733390534291,0.47491234,103090.0,103080.0,2.62124125]
[1733390534506,0.44555786,103090.0,103080.0,2.62124125]
[1733390534718,0.44455786,103090.0,103080.0,2.61224125]
[1733390534926,0.44355786,103090.0,103080.0,2.60424125]
[1733390535157,0.35063644,103090.0,103080.0,2.70424125]
[1733390535371,0.35963644,103090.0,103080.0,2.70524125]
[1733390535587,0.35063644,103090.0,103080.0,2.60424125]
[1733390535795,0.30441725,103090.0,103080.0,2.60424125]
[1733390536021,0.40233647,103090.0,103080.0,2.60424125]
[1733390536234,0.30441725,103090.0,103080.0,2.60424125]
[1733390536483,0.32515786,103090.0,103080.0,2.50723125]
[1733390536720,0.32515786,103090.0,103080.0,2.48782925]
[1733390537379,0.48415786,103090.0,103080.0,2.48882925]
[1733390538916,0.58207708,103090.0,103080.0,2.48882925]
[1733390539377,0.58207708,103090.0,103080.0,2.45002525]
[1733390539378,0.48415786,103090.0,103080.0,2.45002525]
[1733390539594,0.48415786,103090.0,103080.0,2.39181925]
[1733390539804,0.50715786,103090.0,103080.0,2.29480925]
[1733390540260,0.52636871,103090.0,103080.0,2.29480925]
[1733390541353,0.52636871,103090.0,103080.0,2.39480925]
[1733390541566,0.5056281,103090.0,103080.0,2.39480925]
[1733390541788,0.48641725,103090.0,103080.0,2.39480925]
[1733390542478,0.53263644,103090.0,103080.0,2.39480925]
[1733390542691,0.48641725,103090.0,103080.0,2.39480925]
[1733390543128,0.53263644,103090.0,103080.0,2.17006029]
[1733390543779,0.53263644,103090.0,103080.0,2.07006029]
[1733390544226,0.48641725,103090.0,103080.0,2.17006029]
[1733390544466,0.48641725,103090.0,103080.0,2.07006029]
[1733390544705,0.48641725,103090.0,103080.0,2.29406029]
[1733390544924,0.3867412,103090.0,103080.0,2.29406029]
[1733390545154,0.48641725,103090.0,103080.0,2.29406029]
[1733390547394,0.58433647,103090.0,103080.0,2.29406029]
[1733390547634,0.48641725,103090.0,103080.0,2.29406029]
[1733390547842,0.48641725,103090.0,103080.0,2.24506029]
[1733390548482,0.53263644,103090.0,103080.0,2.17006029]
[1733390549995,0.53178828,103090.0,103080.0,2.17006029]
[1733390555212,0.48556909,103090.0,103080.0,2.17006029]
[1733390555636,0.54926145,103090.0,103080.0,2.17006029]
[1733390555848,0.50304226,103090.0,103080.0,2.17006029]
[1733390556719,0.48556909,103090.0,103080.0,2.16916029]
[1733390557207,0.48556909,103090.0,103080.0,2.29236029]
[1733390557878,0.48556909,103090.0,103080.0,2.08606491]
[1733390562878,0.36289304,103090.0,103080.0,2.08606491]
[1733390563951,0.46256909,103090.0,103080.0,2.08606491]
[1733390572612,0.46256909,103090.0,103080.0,1.88859307]
[1733390572816,0.36289304,103090.0,103080.0,1.88859307]
[1733390573313,0.36289304,103090.0,103080.0,1.94237388]
[1733390574581,0.35389304,103090.0,103080.0,1.94137388]
[1733390575043,0.34589304,103090.0,103080.0,1.88659307]
[1733390575254,0.34689304,103090.0,103080.0,1.94337388]
[1733390578609,0.19689304,103090.0,103080.0,2.04337388]
[1733390581214,0.19689304,103090.0,103080.0,1.83471848]
[1733390585606,0.343969,103110.0,103100.0,0.41288081]
[1733390585607,0.15,103110.0,103100.0,0.41288081]
[1733390585813,0.15,103110.0,103100.0,0.51255686]
[1733390586257,0.387884,103130.0,103120.0,0.41288081]
[1733390587388,0.387884,103130.0,103120.0,0.25893258]
[1733390588510,0.387884,103130.0,103120.0,0.15893258]
[1733390588714,0.387884,103130.0,103120.0,0.26793258]
[1733390588715,0.388884,103130.0,103120.0,0.26793258]
[1733390589171,0.388884,103130.0,103120.0,0.16793258]
[1733390591574,0.388884,103130.0,103120.0,0.17693258]
[1733390591575,0.389884,103130.0,103120.0,0.17693258]
[1733390594766,0.002,103130.0,103120.0,0.27660863]
[1733390594986,0.002,103130.0,103120.0,0.37660863]
[1733390595470,0.002,103130.0,103120.0,0.37357863]
[1733390596121,0.002,103130.0,103120.0,0.30976045]
[1733390596340,0.195929,103130.0,103120.0,0.30976045]
[1733390597158,0.1967971,103130.0,103120.0,0.30976045]
[1733390597603,0.0028681,103130.0,103120.0,0.30976045]
[1733390598463,0.1967971,103130.0,103120.0,0.30976045]
[1733390601141,0.1967971,103130.0,103120.0,0.2100844]
[1733390601359,0.1967971,103130.0,103120.0,0.11497]
[1733390603099,0.1967971,103130.0,103120.0,0.11148286]
[1733390603274,0.1967971,103130.0,103120.0,0.09713695]
[1733390603680,0.2455971,103130.0,103120.0,0.09713695]
[1733390603982,0.42477315,103130.0,103120.0,0.00016195]
[1733390604195,0.56878832,103130.0,103120.0,0.00016195]
[1733390604400,0.194005,103090.0,103080.0,1.46164853]
[1733390604641,0.194005,103090.0,103080.0,1.46270271]
[1733390604850,0.194005,103090.0,103080.0,1.46170721]
[1733390605322,0.194005,103090.0,103080.0,1.43447506]
[1733390605710,0.195005,103090.0,103080.0,1.44347506]
[1733390606170,60.196005,103090.0,103080.0,1.45247506]
[1733390606293,0.196005,103090.0,103080.0,1.45247506]
[1733390606498,0.196005,103090.0,103080.0,1.44443152]
[1733390606725,0.20572547,103090.0,103080.0,1.44059385]
[1733390607312,0.20572547,103090.0,103080.0,1.46359385]
[1733390607595,0.20572547,103090.0,103080.0,1.56060385]
[1733390609493,0.20572547,103090.0,103080.0,1.48010385]
[1733390612858,0.20251792,103090.0,103080.0,1.48010385]
[1733390617889,0.1973199,103090.0,103080.0,1.48010385]
[1733390618118,0.2749199,103090.0,103080.0,1.48010385]
[1733390618324,0.2749199,103090.0,103080.0,1.47610385]
[1733390619460,0.37546395,103090.0,103080.0,1.47610385]
[1733390619678,0.37446395,103090.0,103080.0,1.46710385]
[1733390620118,0.37446395,103090.0,103080.0,1.46010385]
[1733390620351,0.37546395,103090.0,103080.0,1.46110385]
[1733390621068,0.37546395,103090.0,103080.0,1.42145122]
[1733390621735,0.37546395,103090.0,103080.0,1.29845122]
[1733390621926,0.37546395,103090.0,103080.0,1.2177424]
[1733390622170,0.37546395,103090.0,103080.0,1.1620324]
[1733390622593,0.42446395,103090.0,103080.0,1.1620324]
[1733390622802,0.42446395,103090.0,103080.0,1.02348767]
[1733390623022,0.54746395,103090.0,103080.0,0.95833705]
[1733390623228,0.64746395,103090.0,103080.0,0.63751706]
[1733390623438,0.64746395,103090.0,103080.0,0.59772806]
[1733390623671,0.64746395,103090.0,103080.0,0.50071806]
[1733390623903,0.64646395,103090.0,103080.0,0.49871806]
[1733390624148,0.64746395,103090.0,103080.0,0.17644806]
[1733390624338,0.64746395,103090.0,103080.0,0.04844806]
[1733390624564,0.64746395,103090.0,103080.0,6e-08]
[1733390625023,0.54746395,103090.0,103080.0,6e-08]
[1733390625246,0.64746395,103090.0,103080.0,6e-08]
[1733390625487,0.54746395,103090.0,103080.0,6e-08]
[1733390625713,0.63774348,103090.0,103080.0,6e-08]
[1733390627167,0.78774348,103090.0,103080.0,6e-08]
[1733390629242,0.68774348,103090.0,103080.0,6e-08]
[1733390629696,0.194061,103060.0,103050.0,0.10191946]
[1733390630130,0.194061,103060.0,103050.0,0.10203351]
[1733390632558,0.194061,103060.0,103050.0,0.05473351]
[1733390632996,0.194061,103060.0,103050.0,0.05646951]
[1733390633415,0.194061,103060.0,103050.0,0.00185005]
[1733390636920,0.27220779,103060.0,103050.0,0.00185005]
[1733390637154,0.19408,103050.0,103040.0,0.0017332]
[1733390637381,0.29590315,103050.0,103040.0,0.00190955]
[1733390637606,0.29375605,103050.0,103040.0,0.00190955]
[1733390638260,0.29475605,103050.0,103040.0,0.00190955]
[1733390639804,0.29575605,103050.0,103040.0,0.00190955]
[1733390640908,0.194099,103040.0,103030.0,8.5e-07]
[1733390641120,0.48859795,103040.0,103030.0,8.5e-07]
[1733390641349,0.48649351,103030.0,103010.0,0.0008675]
[1733390641573,0.37734682,103020.0,103010.0,0.0008675]
[1733390641785,0.37519902,103020.0,103000.0,0.001734]
[1733390642022,0.194155,103010.0,103000.0,0.001734]
[1733390642249,0.344155,103010.0,103000.0,0.001734]
[1733390642720,0.55461702,103010.0,103000.0,0.001734]
[1733390642967,0.194174,103000.0,102980.0,0.0008678]
[1733390643196,0.29386905,102990.0,102980.0,0.0008678]
[1733390643419,0.29386905,102990.0,102980.0,0.001456]
[1733390644569,0.30286905,102990.0,102980.0,0.001456]
[1733390644773,0.32586905,102990.0,102980.0,0.001456]
[1733390645228,0.44116017,102990.0,102980.0,0.001456]
[1733390645437,0.45016017,102990.0,102980.0,0.001456]
[1733390646113,0.41396905,102990.0,102980.0,0.001456]
[1733390646628,0.41396905,102990.0,102970.0,0.0008687]
[1733390646860,0.194212,102980.0,102970.0,0.0010452]
[1733390647514,0.29603656,102980.0,102970.0,0.0010452]
[1733390647730,0.29388805,102980.0,102970.0,0.0010452]
[1733390648205,0.29488805,102980.0,102970.0,0.0010452]
[1733390648850,0.29588805,102980.0,102970.0,0.0010452]
[1733390650011,0.29189963,102980.0,102970.0,0.0010452]
[1733390651406,0.2884359,102980.0,102970.0,0.0010452]
[1733390654459,0.19425,102960.0,102950.0,0.0261134]
[1733390654684,0.19425,102960.0,102950.0,0.02617223]
[1733390655784,0.19525,102960.0,102950.0,0.02617223]
[1733390656675,0.19625,102960.0,102950.0,0.02617223]
[1733390657523,0.19625,102960.0,102950.0,0.20834828]
[1733390660635,0.20584067,102960.0,102950.0,0.20834828]
[1733390661255,0.20584067,102960.0,102950.0,0.10867223]
[1733390661643,0.19625,102960.0,102950.0,0.10867223]
[1733390662453,0.19625,102960.0,102950.0,5.883e-05]
[1733390663472,0.20623595,102960.0,102950.0,5.883e-05]
[1733390664534,0.20619595,102960.0,102950.0,5.883e-05]
[1733390666829,0.19621,102960.0,102950.0,5.883e-05]
[1733390667589,0.19621,102960.0,102950.0,0.00092793]
[1733390667767,0.1979482,102960.0,102950.0,0.00092793]
[1733390669947,0.1979082,102960.0,102950.0,0.00092793]
[1733390671212,0.2778082,102960.0,102950.0,0.00092793]
[1733390672135,0.4278082,102960.0,102950.0,0.00092793]
[1733390674811,0.48690311,102960.0,102950.0,0.00092793]
[1733390675042,0.61574335,102960.0,102950.0,0.00092793]
[1733390677006,0.60594844,102960.0,102950.0,0.00092793]
[1733390680211,0.194306,102930.0,102920.0,0.02526078]
[1733390680406,0.194306,102930.0,102920.0,0.12499571]
[1733390680613,0.194306,102930.0,102920.0,0.14401382]
[1733390681765,0.194306,102930.0,102920.0,0.04433777]
[1733390681964,0.195306,102930.0,102920.0,0.04433777]
[1733390682186,0.196306,102930.0,102920.0,0.04433777]
[1733390683220,0.196306,102930.0,102920.0,0.09113777]
[1733390684123,0.196306,102930.0,102920.0,0.19081382]
[1733390686338,0.19568065,102930.0,102920.0,0.19081382]
[1733390687651,0.38999765,102930.0,102920.0,0.09967605]
[1733390689896,0.39986864,102930.0,102920.0,0.09967605]
[1733390690354,0.39986864,102930.0,102920.0,0.10054515]
[1733390690793,0.39986864,102930.0,102920.0,0.17684515]
[1733390690980,0.39986864,102930.0,102920.0,0.19646187]
[1733390691986,0.38999765,102930.0,102920.0,0.19646187]
[1733390694010,0.002,102930.0,102920.0,0.19646187]
[1733390694249,0.001,102930.0,102920.0,0.24931033]
[1733390694473,0.15,102940.0,102930.0,0.09824846]
[1733390694710,0.15,102940.0,102930.0,0.19792451]
[1733390694914,0.15,102940.0,102930.0,0.29507451]
[1733390695780,0.151,102940.0,102930.0,0.33037451]
[1733390696154,0.152,102940.0,102930.0,0.33037451]
[1733390697062,0.151,102940.0,102930.0,0.33037451]
[1733390697283,0.152,102940.0,102930.0,0.33637451]
[1733390697507,0.151,102940.0,102930.0,0.33637451]
[1733390697720,0.151,102940.0,102930.0,0.36586542]
[1733390697930,0.152,102940.0,102930.0,0.37486542]
[1733390702237,0.1537392,102940.0,102930.0,0.37486542]
[1733390702709,0.1537392,102940.0,102930.0,0.47486542]
[1733390705007,0.1537392,102940.0,102930.0,0.56230342]
[1733390705473,0.1537392,102940.0,102930.0,0.47486542]
[1733390706147,0.1537392,102940.0,102930.0,0.37486542]
[1733390706381,0.1537392,102940.0,102930.0,0.47486542]
[1733390713933,0.1537392,102940.0,102930.0,0.38486542]
[1733390714508,0.1537392,102940.0,102930.0,0.34956542]
[1733390715369,0.1537392,102940.0,102930.0,0.22007451]
[1733390716035,0.1537392,102940.0,102930.0,0.24951807]
[1733390720915,0.3480262,102940.0,102930.0,0.24951807]
[1733390722013,0.3480262,102940.0,102930.0,0.24932143]
[1733390722664,0.4301262,102940.0,102930.0,0.24932143]
[1733390723120,0.4301262,102940.0,102930.0,0.21987787]
[1733390723523,0.4301262,102940.0,102930.0,0.24936242]
[1733390723969,0.2358392,102940.0,102930.0,0.24936242]
[1733390725452,0.2358392,102940.0,102930.0,0.25023182]
[1733390726909,0.4301262,102940.0,102930.0,0.25023182]
[1733390729300,0.4790262,102940.0,102930.0,0.25023182]
[1733390729722,0.4770262,102940.0,102930.0,0.23523182]
[1733390729950,0.4790262,102940.0,102930.0,0.24723182]
[1733390732838,0.4790262,102940.0,102930.0,0.22968336]
[1733390733522,0.4790262,102940.0,102930.0,0.0484894]
[1733390733745,0.4790262,102940.0,102930.0,0.03927733]
[1733390734601,0.4780262,102940.0,102930.0,0.03427733]
[1733390734810,0.4780262,102940.0,102930.0,0.03227733]
[1733390735027,0.56047774,102940.0,102930.0,0.03227733]
[1733390735259,0.56147774,102940.0,102930.0,0.04027733]
[1733390735466,0.56147774,102940.0,102930.0,3.3e-07]
[1733390735467,0.62647083,102940.0,102930.0,3.3e-07]
[1733390735735,0.40475754,102930.0,102920.0,0.0008691]
[1733390735946,0.50443359,102930.0,102920.0,0.0008691]
[1733390736603,0.50443359,102930.0,102920.0,1e-07]
[1733390736860,0.52920217,102930.0,102920.0,1e-07]
[1733390737304,0.40120217,102930.0,102910.0,0.0008696]
[1733390737524,0.321525,102920.0,102910.0,0.0008696]
[1733390739066,0.323525,102920.0,102910.0,0.0008696]
[1733390739279,0.53042117,102920.0,102910.0,6e-07]
[1733390739499,0.44796963,102920.0,102910.0,6e-07]
[1733390740538,0.42320105,102920.0,102910.0,6e-07]
[1733390741686,0.42220105,102920.0,102910.0,6e-07]
[1733390742188,0.42320105,102920.0,102910.0,6e-07]
[1733390747172,0.57320105,102920.0,102910.0,6e-07]
[1733390747859,0.67112027,102920.0,102910.0,6e-07]
[1733390748820,0.57320105,102920.0,102910.0,6e-07]
[1733390758021,0.65565259,102920.0,102910.0,6e-07]
[1733390758488,0.55597654,102920.0,102910.0,6e-07]
[1733390759523,0.473525,102920.0,102910.0,6e-07]
[1733390760238,0.473525,102920.0,102910.0,0.0033526]
[1733390760462,0.4752642,102920.0,102910.0,0.0033526]
[1733390760939,0.4982642,102920.0,102910.0,0.0033526]
[1733390764002,0.58071574,102920.0,102910.0,0.0033526]
[1733390764906,0.68039179,102920.0,102910.0,0.0033526]
[1733390765163,0.68039179,102920.0,102910.0,6e-07]
[1733390766913,0.59794025,102920.0,102910.0,6e-07]
[1733390768437,0.69585947,102920.0,102910.0,6e-07]
[1733390768665,0.59794025,102920.0,102910.0,6e-07]
[1733390770431,0.08245154,102910.0,102890.0,0.00081178]
[1733390770663,0.344363,102900.0,102890.0,0.00081178]
[1733390773348,0.19442,102870.0,102850.0,0.02998388]
[1733390773560,0.19442,102870.0,102860.0,0.09967605]
[1733390773772,0.19442,102870.0,102860.0,0.12930838]
[1733390774660,0.19442,102870.0,102860.0,0.12989749]
[1733390775072,0.19442,102870.0,102860.0,0.14892861]
[1733390775461,0.002,102870.0,102860.0,0.14892861]
[1733390775667,0.19642,102870.0,102860.0,0.14892861]
[1733390775866,0.19542,102870.0,102860.0,0.14892861]
[1733390776068,0.19642,102870.0,102860.0,0.14892861]
[1733390776495,0.19642,102870.0,102860.0,0.24613861]
[1733390778406,0.390851,102870.0,102860.0,0.09967605]
[1733390779261,0.390851,102870.0,102860.0,0.19688605]
[1733390780115,0.390851,102870.0,102860.0,0.21645548]
[1733390781463,0.19642,102870.0,102860.0,0.21645548]
[1733390782718,0.19642,102870.0,102860.0,0.20645548]
[1733390783376,0.1981602,102870.0,102860.0,0.20645548]
[1733390786834,0.20781844,102870.0,102860.0,0.20645548]
[1733390786978,0.1981602,102870.0,102860.0,0.20645548]
[1733390789229,0.0027402,102870.0,102860.0,0.20645548]
[1733390789649,0.0027402,102870.0,102860.0,0.10277926]
[1733390790487,0.0027402,102870.0,102860.0,0.19998926]
[1733390790945,0.1971602,102870.0,102860.0,0.19998926]
[1733390791727,0.19584209,102870.0,102860.0,0.19998926]
[1733390792901,0.19584209,102870.0,102860.0,0.20241355]
[1733390793521,0.20559693,102870.0,102860.0,0.20241355]
[1733390796769,0.19584209,102870.0,102860.0,0.20188973]
[1733390798802,0.34584209,102870.0,102860.0,0.20188973]
[1733390799006,0.47034209,102870.0,102860.0,0.20188973]
[1733390802327,0.47034209,102870.0,102860.0,0.10221368]
[1733390803529,0.47134209,102870.0,102860.0,0.10221368]
[1733390803696,0.47234209,102870.0,102860.0,0.10221368]
[1733390804755,0.48214297,102870.0,102860.0,0.10221368]
[1733390804954,0.58214297,102870.0,102860.0,0.10221368]
[1733390806968,0.57234209,102870.0,102860.0,0.10221368]
[1733390807381,0.57234209,102870.0,102860.0,0.10308168]
[1733390808132,0.57234209,102870.0,102860.0,0.10308218]
[1733390808352,0.57234209,102870.0,102860.0,0.10308219]
[1733390808778,0.194457,102850.0,102840.0,0.7844651]
[1733390808988,0.194457,102850.0,102840.0,0.91352492]
[1733390809745,0.194457,102850.0,102840.0,1.01075492]
[1733390809956,0.195457,102850.0,102840.0,1.01075492]
[1733390810181,0.196457,102850.0,102840.0,1.01075492]
[1733390812589,0.196457,102850.0,102840.0,1.03040482]
[1733390812885,0.002,102850.0,102840.0,1.03040482]
[1733390813108,0.196457,102850.0,102840.0,0.24593972]
[1733390815467,0.277957,102850.0,102840.0,0.24593972]
[1733390816762,0.277957,102850.0,102840.0,0.10789257]
[1733390817872,0.277957,102850.0,102840.0,0.20512257]
[1733390820192,0.277957,102850.0,102840.0,0.20599067]
[1733390820609,0.277957,102850.0,102840.0,0.10599067]
[1733390822025,0.427957,102850.0,102840.0,0.11738833]
[1733390822237,0.476857,102850.0,102840.0,0.11738833]
[1733390822468,0.476857,102850.0,102840.0,0.11676172]
[1733390822689,0.475857,102850.0,102840.0,0.11676172]
[1733390822891,0.474857,102850.0,102840.0,0.11676172]
[1733390823102,0.475857,102850.0,102840.0,0.11676172]
[1733390823317,0.476857,102850.0,102840.0,0.11676172]
[1733390823996,0.576857,102850.0,102840.0,0.11676172]
[1733390824416,0.67653305,102850.0,102840.0,0.11676172]
[1733390825560,0.67453305,102850.0,102840.0,0.11676172]
[1733390825991,0.67653305,102850.0,102840.0,0.11676172]
[1733390826210,0.576857,102850.0,102840.0,0.11676172]
[1733390826418,0.475857,102850.0,102840.0,0.11676172]
[1733390826644,0.575857,102850.0,102840.0,0.11676172]
[1733390826860,0.576857,102850.0,102840.0,0.11676172]
[1733390827089,0.476857,102850.0,102840.0,0.11676172]
[1733390827303,0.48670674,102850.0,102840.0,0.11676172]
[1733390828169,0.58670674,102850.0,102840.0,0.11676172]
[1733390830801,0.58670674,102850.0,102840.0,0.14582438]
[1733390831556,0.29224974,102850.0,102840.0,0.14582438]
[1733390831790,0.2824,102850.0,102840.0,0.14582438]
[1733390832020,0.2841364,102850.0,102840.0,0.14582438]
[1733390832243,0.4785934,102850.0,102840.0,0.14582438]
[1733390833155,0.2841364,102850.0,102840.0,0.14582438]
[1733390833381,0.1537364,102850.0,102840.0,0.24550043]
[1733390834512,0.16358877,102850.0,102840.0,0.24550043]
[1733390834987,0.13645426,102850.0,102840.0,0.24550043]
[1733390835464,0.45921126,102850.0,102840.0,0.14582438]
[1733390836353,0.41111126,102850.0,102840.0,0.14582438]
[1733390836588,0.21665426,102850.0,102840.0,0.14582438]
[1733390838291,0.41111126,102850.0,102840.0,0.14582438]
[1733390842185,0.40125889,102850.0,102840.0,0.14582438]
[1733390845526,0.45085889,102850.0,102840.0,0.14582438]
[1733390848844,0.46066597,102850.0,102840.0,0.14582438]
[1733390852280,0.45085889,102850.0,102840.0,0.14582438]
[1733390855932,0.45085889,102850.0,102840.0,0.14744777]
[1733390857164,0.46055667,102850.0,102840.0,0.14744777]
[1733390861899,0.45085889,102850.0,102840.0,0.14744777]
[1733390862591,0.25640189,102850.0,102840.0,0.14744777]
[1733390862809,0.0037364,102850.0,102840.0,0.24712382]
[1733390863299,0.271839,102860.0,102850.0,0.0962636]
[1733390863535,0.271839,102860.0,102850.0,0.12532626]
[1733390863745,0.271839,102860.0,102850.0,0.22318126]
[1733390864193,0.0774,102860.0,102850.0,0.32280176]
[1733390864406,0.76846494,102870.0,102850.0,0.32280176]
[1733390864618,0.001,102860.0,102850.0,0.33080176]
[1733390865327,0.27960794,102870.0,102850.0,0.32280176]
[1733390865586,0.29441,102880.0,102860.0,0.09967605]
[1733390865587,0.0796,102880.0,102860.0,0.09967605]
[1733390865811,0.1218,102890.0,102860.0,0.12873871]
[1733390865991,0.1218,102890.0,102860.0,0.22658471]
[1733390865992,0.0755,102890.0,102860.0,0.22658471]
[1733390866464,0.538149,102900.0,102860.0,0.77028471]
[1733390866876,0.343774,102900.0,102870.0,0.02]
[1733390867088,0.538146,102900.0,102880.0,0.09967605]
[1733390867297,0.001,102890.0,102880.0,0.12873871]
[1733390867534,0.001,102890.0,102880.0,0.22656571]
[1733390868736,0.38984893,102890.0,102880.0,0.12688966]
[1733390868972,0.420982,102890.0,102880.0,0.106827]
[1733390869188,0.420982,102890.0,102880.0,0.097827]
[1733390870044,0.421982,102890.0,102880.0,0.0792977]
[1733390870257,0.444982,102890.0,102880.0,0.0392741]
[1733390870669,0.345982,102890.0,102880.0,0.06759242]
[1733390870873,0.345982,102890.0,102880.0,0.06921593]
[1733390872587,0.445982,102890.0,102880.0,0.06921593]
[1733390873042,0.345982,102890.0,102880.0,0.06921593]
[1733390873271,0.344982,102890.0,102880.0,0.06021593]
[1733390873934,0.345982,102890.0,102880.0,0.06921593]
[1733390874154,0.194422,102870.0,102850.0,0.99362649]
[1733390874389,0.194422,102870.0,102860.0,0.09967605]
[1733390874840,0.194422,102870.0,102860.0,0.22589136]
[1733390875306,0.194422,102870.0,102860.0,0.19688605]
[1733390875524,0.194422,102870.0,102860.0,0.21647052]
[1733390875752,0.195422,102870.0,102860.0,0.22547052]
[1733390876241,0.196422,102870.0,102860.0,0.13479447]
[1733390876909,0.196422,102870.0,102860.0,0.23447052]
[1733390877167,0.002,102870.0,102860.0,0.23447052]
[1733390877403,0.62194683,102890.0,102860.0,0.2634761]
[1733390877634,0.62194683,102890.0,102870.0,0.09967605]
[1733390877842,0.194404,102880.0,102870.0,0.09967605]
[1733390878024,0.271704,102880.0,102870.0,0.09721]
[1733390878702,0.371704,102880.0,102870.0,0.10621]
[1733390879835,0.372704,102880.0,102870.0,0.10621]
[1733390880485,0.272704,102880.0,102870.0,0.10621]
[1733390880669,0.372704,102880.0,102870.0,0.09721]
[1733390880932,0.373704,102880.0,102870.0,0.10621]
[1733390884082,0.373704,102880.0,102870.0,0.13520461]
[1733390884294,0.273704,102880.0,102870.0,0.23488066]
[1733390884520,0.373704,102880.0,102870.0,0.23488066]
[1733390886797,0.0793,102880.0,102870.0,0.23488066]
[1733390887021,0.002,102880.0,102870.0,0.23488066]
[1733390888602,2.781e-05,102880.0,102870.0,0.23488066]
[1733390889635,0.01137376,102890.0,102870.0,0.23488066]
[1733390889837,0.01137376,102890.0,102880.0,0.09967605]
[1733390890065,0.01137376,102890.0,102880.0,0.12867066]
[1733390890287,0.01137376,102890.0,102880.0,0.22587166]
[1733390891195,0.01237376,102890.0,102880.0,0.23487166]
[1733390891701,0.01337376,102890.0,102880.0,0.23487166]
[1733390892070,0.01237376,102890.0,102880.0,0.23487166]
[1733390892301,0.20675576,102890.0,102880.0,0.23487166]
[1733390892538,0.20775576,102890.0,102880.0,0.23887166]
[1733390893530,0.01337376,102890.0,102880.0,0.23887166]
[1733390893988,0.765445,102900.0,102880.0,0.23887166]
[1733390894603,0.194382,102890.0,102880.0,0.23887166]
[1733390894822,0.76545,102900.0,102880.0,0.22987166]
[1733390895039,0.76545,102900.0,102880.0,0.24547398]
[1733390895251,0.77605545,102900.0,102880.0,0.24847398]
[1733390895493,0.77705545,102900.0,102880.0,0.25747398]
[1733390895705,0.77605545,102900.0,102880.0,0.25447398]
[1733390895912,0.58167745,102900.0,102880.0,0.25447398]
[1733390896124,0.58267745,102900.0,102880.0,0.25747398]
[1733390896341,0.77704945,102900.0,102880.0,0.25747398]
[1733390896885,0.767444,102900.0,102880.0,0.25747398]
[1733390897112,0.766444,102900.0,102880.0,0.24847398]
[1733390897338,0.473072,102900.0,102880.0,0.25747398]
[1733390897551,0.666444,102900.0,102880.0,0.25447398]
[1733390897774,0.472072,102900.0,102880.0,0.24547398]
[1733390897991,0.474072,102900.0,102880.0,0.26347398]
[1733390898436,0.668444,102900.0,102880.0,0.26347398]
[1733390898647,0.194382,102890.0,102880.0,0.26347398]
[1733390898861,0.15926265,102890.0,102880.0,0.26347398]
[1733390899167,0.668444,102900.0,102880.0,0.26347398]
[1733390899182,0.862821,102900.0,102880.0,0.26347398]
[1733390899577,0.668444,102900.0,102880.0,0.26347398]
[1733390900207,0.86282,102900.0,102880.0,0.26347398]
[1733390900419,0.861824,102900.0,102880.0,0.25447398]
[1733390900619,0.859824,102900.0,102880.0,0.24547398]
[1733390900830,0.001,102890.0,102880.0,0.25447398]
[1733390901028,0.196382,102890.0,102880.0,0.26347398]
[1733390901243,0.195382,102890.0,102880.0,0.24547398]
[1733390901448,0.194382,102890.0,102880.0,0.25447398]
[1733390901705,0.194382,102890.0,102880.0,0.26347398]
[1733390901887,0.194382,102890.0,102880.0,0.25447398]
[1733390902104,0.195382,102890.0,102880.0,0.25447398]
[1733390902517,0.196382,102890.0,102880.0,0.26347398]
[1733390903423,0.196382,102890.0,102880.0,0.26434178]
[1733390906389,0.77696717,102900.0,102880.0,0.26434178]
[1733390906599,0.97134717,102900.0,102880.0,0.26434178]
[1733390906942,0.9615636,102900.0,102880.0,0.26434178]
[1733390907143,0.9615636,102900.0,102880.0,0.25534178]
[1733390907355,0.9615636,102900.0,102880.0,0.24634178]
[1733390907555,0.7681836,102900.0,102880.0,0.25534178]
[1733390907811,0.0836356,102900.0,102880.0,0.72624178]
[1733390908043,0.0037356,102900.0,102880.0,0.77044178]
[1733390908276,0.0037356,102900.0,102890.0,0.09967605]
[1733390908511,0.0037356,102900.0,102890.0,0.22586166]
[1733390908731,0.0037356,102900.0,102890.0,0.32266166]
[1733390908948,0.0037356,102900.0,102890.0,0.36566166]